bitfinex-derivatives/quotes_BTCF0:USTF0_20251108
["timestamp","ask_amount","ask_price","bid_price","bid_amount"]
[1762607765964,0.50375507,102000.0,101990.0,0.26194397]
[1762607766159,0.3608,102000.0,101990.0,0.26194397]
[1762607769075,0.4588931,102000.0,101990.0,0.15802934]
[1762607769276,0.4588931,102000.0,101990.0,0.26194397]
[1762607769869,0.4588931,102000.0,101990.0,0.16384127]
[1762607771388,0.3608,102000.0,101990.0,0.26194397]
[1762607771578,0.39597822,102000.0,101990.0,0.26194397]
[1762607771873,0.39597822,102000.0,101990.0,0.15802934]
[1762607772074,0.49407132,102000.0,101990.0,0.26194397]
[1762607772569,0.3608,102000.0,101990.0,0.26194397]
[1762607772771,0.45064176,102010.0,102000.0,0.1549331]
[1762607772974,0.36094702,102010.0,102000.0,0.36276236]
[1762607773170,0.46775764,102010.0,102000.0,0.36276236]
[1762607773375,0.47938277,102010.0,102000.0,0.36276236]
[1762607774979,0.44420455,102010.0,102000.0,0.36276236]
[1762607776380,0.36094702,102010.0,102000.0,0.36276236]
[1762607776582,0.3608,102020.0,102010.0,0.05684]
[1762607776771,0.3608,102020.0,102010.0,0.25883813]
[1762607776970,0.3608,102030.0,102020.0,0.0980739]
[1762607777280,0.3608,102030.0,102020.0,0.25882853]
[1762607778273,0.4588643,102030.0,102020.0,0.25882853]
[1762607778473,0.4588643,102030.0,102020.0,0.16075463]
[1762607778783,0.60336206,102030.0,102020.0,0.16075463]
[1762607778984,0.60636206,102030.0,102020.0,0.16075463]
[1762607779684,0.60936206,102030.0,102020.0,0.16075463]
[1762607780085,0.57418384,102030.0,102020.0,0.16075463]
[1762607780780,0.66212992,102030.0,102020.0,0.05684]
[1762607781591,0.60936206,102030.0,102020.0,0.05684]
[1762607782978,0.60936206,102030.0,102020.0,0.03501]
[1762607783285,0.60936206,102030.0,102020.0,0.1549139]
[1762607783481,0.60936206,102030.0,102020.0,0.05684]
[1762607783786,0.60936206,102030.0,102020.0,0.1549139]
[1762607784587,0.60936206,102030.0,102020.0,0.25882853]
[1762607784784,0.60936206,102030.0,102020.0,0.01287]
[1762607785575,0.0980739,102020.0,102010.0,0.03471702]
[1762607785780,0.49405212,102020.0,102010.0,0.01301702]
[1762607785980,0.59822155,102020.0,102010.0,0.01301702]
[1762607786792,0.60022155,102020.0,102010.0,0.01301702]
[1762607787290,0.65398941,102020.0,102010.0,0.00014702]
[1762607787592,0.65398941,102020.0,102010.0,0.01292702]
[1762607788383,0.65398941,102020.0,102010.0,0.11101052]
[1762607788892,0.74848398,102020.0,102010.0,0.00014702]
[1762607789082,0.86998825,102020.0,102010.0,0.00014702]
[1762607789287,0.0980931,102000.0,101990.0,0.05747664]
[1762607789488,0.85480677,102000.0,101990.0,0.05747664]
[1762607789788,0.96289031,102000.0,101990.0,0.05747664]
[1762607789993,0.0981027,101990.0,101980.0,0.89418337]
[1762607790183,0.4589027,101990.0,101980.0,0.81777127]
[1762607790494,0.56698624,101990.0,101980.0,0.81777127]
[1762607790997,0.56708849,101990.0,101980.0,0.81777127]
[1762607791196,0.56708849,101990.0,101980.0,0.71685664]
[1762607791495,0.56708849,101990.0,101980.0,0.77128357]
[1762607792390,0.56708849,101990.0,101980.0,0.87526258]
[1762607793905,0.56708849,101990.0,101980.0,0.36830594]
[1762607794886,0.56708849,101990.0,101980.0,0.27019364]
[1762607796299,0.56708849,101990.0,101980.0,0.005]
[1762607796488,0.85392666,101990.0,101980.0,0.005]
[1762607796689,0.0981123,101980.0,101970.0,0.10409384]
[1762607796889,0.4589123,101980.0,101970.0,0.10409384]
[1762607797088,0.60698871,101980.0,101970.0,0.10409384]
[1762607797293,0.60698871,101980.0,101970.0,0.00014702]
[1762607797294,0.57187504,101980.0,101970.0,0.00014702]
[1762607797594,0.57187504,101980.0,101970.0,0.10409384]
[1762607797903,0.57187504,101980.0,101970.0,0.10809384]
[1762607798091,0.67589568,101980.0,101970.0,0.00414702]
[1762607798296,0.71907048,101980.0,101970.0,0.00414702]
[1762607798997,0.75418415,101980.0,101970.0,0.00714702]
[1762607799299,0.80685465,101980.0,101970.0,0.00714702]
[1762607800098,0.75418415,101980.0,101970.0,0.00714702]
[1762607801798,0.75418415,101980.0,101970.0,0.02884702]
[1762607802095,0.71907048,101980.0,101970.0,0.02884702]
[1762607802498,0.71907048,101980.0,101970.0,0.00714702]
[1762607803097,0.71907048,101980.0,101970.0,0.02884702]
[1762607804004,0.71907048,101980.0,101970.0,0.04216702]
[1762607804306,0.71907048,101980.0,101970.0,0.06401702]
[1762607805805,0.57194886,101980.0,101970.0,0.29213872]
[1762607806703,0.57194886,101980.0,101970.0,0.19401672]
[1762607807601,0.57194886,101980.0,101970.0,0.00714702]
[1762607808300,0.60706253,101980.0,101970.0,0.00714702]
[1762607808606,0.57194886,101980.0,101970.0,0.00714702]
[1762607808809,0.0981316,101960.0,101950.0,0.1873697]
[1762607809001,0.45901337,101960.0,101950.0,0.2855109]
[1762607809202,0.56887235,101960.0,101950.0,0.2855109]
[1762607810213,0.57087235,101960.0,101950.0,0.2975109]
[1762607810412,0.5836985,101960.0,101950.0,0.2975109]
[1762607811512,0.01490792,101960.0,101950.0,0.2975109]
[1762607812308,0.01490792,101960.0,101950.0,0.1675112]
[1762607812503,0.57972201,101960.0,101950.0,0.1993697]
[1762607815715,0.48159041,101960.0,101950.0,0.2975109]
[1762607815911,0.57972201,101960.0,101950.0,0.2975109]
[1762607816213,0.57972201,101960.0,101950.0,0.1993697]
[1762607818433,0.57972201,101960.0,101950.0,0.17337113]
[1762607819035,0.48159041,101960.0,101950.0,0.27151233]
[1762607819235,0.57972201,101960.0,101950.0,0.27737226]
[1762607819435,0.57972201,101960.0,101950.0,0.17337113]
[1762607822032,0.57972201,101960.0,101950.0,0.06937]
[1762607822233,0.66750618,101960.0,101950.0,0.12878113]
[1762607822542,0.63239251,101960.0,101950.0,0.012]
[1762607822837,0.73639364,101960.0,101950.0,0.012]
[1762607823035,0.63239251,101960.0,101950.0,0.012]
[1762607823231,0.63139251,101960.0,101950.0,0.006]
[1762607823436,0.63539251,101960.0,101950.0,0.007]
[1762607823935,0.63539251,101960.0,101950.0,0.11100113]
[1762607824238,0.63539251,101960.0,101950.0,0.007]
[1762607824843,0.63639251,101960.0,101950.0,0.10500113]
[1762607825133,0.63639251,101960.0,101950.0,0.001]
[1762607825340,0.63639251,101960.0,101950.0,0.10500113]
[1762607825736,0.63639251,101960.0,101950.0,0.001]
[1762607825935,0.74039364,101960.0,101950.0,0.001]
[1762607827042,0.75817246,101960.0,101950.0,0.001]
[1762607827633,0.0981412,101950.0,101940.0,0.03452702]
[1762607827932,0.65990161,101950.0,101940.0,0.15986815]
[1762607828142,0.65990161,101950.0,101940.0,0.36202008]
[1762607828647,0.65990161,101950.0,101940.0,0.26386928]
[1762607828941,0.60818472,101950.0,101940.0,0.36202008]
[1762607829332,0.57304013,101950.0,101940.0,0.36202008]
[1762607829539,0.57604013,101950.0,101940.0,0.36302008]
[1762607829840,0.57604013,101950.0,101940.0,0.05686702]
[1762607830036,0.57604013,101950.0,101940.0,0.26486928]
[1762607830234,0.57604013,101950.0,101940.0,0.36302008]
[1762607830540,0.57604013,101950.0,101940.0,0.26486928]
[1762607830842,0.57604013,101950.0,101940.0,0.05686702]
[1762607831044,0.57604013,101950.0,101940.0,0.36302008]
[1762607831248,0.57604013,101950.0,101940.0,0.05686702]
[1762607831540,0.57604013,101950.0,101940.0,0.26486928]
[1762607831541,0.57613611,101950.0,101940.0,0.26486928]
[1762607831842,0.57613611,101950.0,101940.0,0.16086815]
[1762607832139,0.57613611,101950.0,101940.0,0.26486928]
[1762607832844,0.6112807,101950.0,101940.0,0.26486928]
[1762607833047,0.00014459,101960.0,101950.0,0.1538612]
[1762607833230,0.00014702,101970.0,101960.0,0.1538516]
[1762607833537,0.5036593,101990.0,101980.0,0.05572]
[1762607833736,0.5036593,101990.0,101980.0,0.26372226]
[1762607833936,0.60747752,101990.0,101980.0,0.36183466]
[1762607834137,0.14856822,101990.0,101980.0,0.36183466]
[1762607834339,0.60747092,101990.0,101980.0,0.1538324]
[1762607834539,0.60747092,101990.0,101980.0,0.36183466]
[1762607835043,0.61991189,101990.0,101980.0,0.36183466]
[1762607836139,0.10381822,101990.0,101980.0,0.46583579]
[1762607836332,0.10781822,101990.0,101980.0,0.28472729]
[1762607836534,0.004,101990.0,101980.0,0.64552729]
[1762607836733,0.006,101990.0,101980.0,0.64552729]
[1762607842048,0.006,101990.0,101980.0,0.89064729]
[1762607842749,0.006,101990.0,101980.0,0.64552729]
[1762607844033,0.006,101990.0,101980.0,0.89064729]
[1762607844233,0.006,101990.0,101980.0,0.64552729]
[1762607845443,0.04936,101990.0,101980.0,0.41752]
[1762607845646,0.15267549,101990.0,101980.0,0.64552719]
[1762607846047,0.25077819,101990.0,101980.0,0.54741489]
[1762607846246,0.25077819,101990.0,101980.0,0.18661489]
[1762607851449,0.25077819,101990.0,101980.0,0.28472719]
[1762607852357,0.25077819,101990.0,101980.0,0.37260008]
[1762607853854,0.15267549,101990.0,101980.0,0.37260008]
[1762607855158,0.25077819,101990.0,101980.0,0.37260008]
[1762607855460,0.25077819,101990.0,101980.0,0.27448778]
[1762607857158,0.25077819,101990.0,101980.0,0.05672]
[1762607857460,0.25077819,101990.0,101980.0,0.27448778]
[1762607857666,0.25077819,101990.0,101980.0,0.37260008]
[1762607858061,0.10931549,101990.0,101980.0,0.37260008]
[1762607858265,0.10931549,101990.0,101980.0,0.73340008]
[1762607858463,0.10931549,101990.0,101980.0,0.72342474]
[1762607858762,0.06635834,102000.0,101990.0,0.1552627]
[1762607858967,0.05367979,102000.0,101990.0,0.72385514]
[1762607860065,0.06560237,102000.0,101990.0,0.72385514]
[1762607860254,0.20856547,102000.0,101990.0,0.72385514]
[1762607860454,0.20856547,102000.0,101990.0,0.73374241]
[1762607860455,0.11047237,102000.0,101990.0,0.73374241]
[1762607860656,0.11047237,102000.0,101990.0,0.63563971]
[1762607860657,0.20856547,102000.0,101990.0,0.63563971]
[1762607861357,0.20856547,102000.0,101990.0,0.73374241]
[1762607861358,0.20956547,102000.0,101990.0,0.73374241]
[1762607861563,0.20956547,102000.0,101990.0,0.63563971]
[1762607862268,0.676205,102000.0,101990.0,0.27483971]
[1762607862867,0.315405,102000.0,101990.0,0.27483971]
[1762607864468,0.315405,102000.0,101990.0,0.37294241]
[1762607864872,0.315405,102000.0,101990.0,0.27483971]
[1762607865059,0.35058406,102000.0,101990.0,0.27483971]
[1762607867471,0.35058406,102000.0,101990.0,0.37294241]
[1762607870472,0.35058406,102000.0,101990.0,0.27483971]
[1762607870662,0.71138406,102000.0,101990.0,0.27483971]
[1762607870863,0.35058406,102000.0,101990.0,0.37294241]
[1762607871572,0.315405,102000.0,101990.0,0.37294241]
[1762607874677,0.2173119,102000.0,101990.0,0.37294241]
[1762607874877,0.1744419,102000.0,101990.0,0.37294241]
[1762607875068,0.1744419,102000.0,101990.0,0.73374241]
[1762607876468,0.1959719,102000.0,101990.0,0.73374241]
[1762607876672,0.1744419,102000.0,101990.0,0.73374241]
[1762607876974,0.16669547,102000.0,101990.0,0.73374241]
[1762607877176,0.06860237,102000.0,101990.0,0.73374241]
[1762607880276,0.16669547,102000.0,101990.0,0.73374241]
[1762607880580,0.16669547,102000.0,101990.0,0.72384512]
[1762607880777,0.05309,101980.0,101970.0,0.39623522]
[1762607880981,0.05309,101980.0,101960.0,0.41365366]
[1762607880982,0.1512216,101960.0,101950.0,8e-08]
[1762607881176,0.1422108,101940.0,101930.0,0.16163941]
[1762607881370,0.04406,101950.0,101940.0,0.05767]
[1762607881679,0.142196,101960.0,101950.0,0.05767]
[1762607881980,0.49425268,101970.0,101960.0,0.05767]
[1762607882275,0.64223577,101970.0,101960.0,0.18117121]
[1762607882478,0.64223577,101970.0,101960.0,0.29511027]
[1762607883279,0.64423577,101970.0,101960.0,0.07728]
[1762607885074,0.64623577,101970.0,101960.0,0.07728]
[1762607885276,0.61105671,101970.0,101960.0,0.07728]
[1762607889284,0.61105671,101970.0,101960.0,0.1754115]
[1762607889485,0.51293011,101970.0,101960.0,0.1754115]
[1762607889686,0.00414702,101970.0,101960.0,0.75404177]
[1762607890080,0.02567702,101970.0,101960.0,0.75404177]
[1762607890388,0.14632892,101970.0,101960.0,0.43808]
[1762607890581,0.14632892,101970.0,101960.0,0.29511027]
[1762607891086,0.14432892,101970.0,101960.0,0.29511027]
[1762607891288,0.14532892,101970.0,101960.0,0.29511027]
[1762607891884,0.14332892,101970.0,101960.0,0.29511027]
[1762607892790,0.39597906,101990.0,101970.0,0.05767]
[1762607892992,0.08701732,102000.0,101990.0,0.1557727]
[1762607893285,0.05353277,102000.0,101990.0,0.75401297]
[1762607893887,0.00014702,102010.0,102000.0,0.155763]
[1762607894091,0.00014702,102010.0,102000.0,0.73439327]
[1762607894390,0.00014702,102010.0,102000.0,0.75400327]
[1762607894889,0.5029147,102040.0,102030.0,0.05767]
[1762607895090,0.1421147,102040.0,102030.0,0.05767]
[1762607895288,0.61292453,102040.0,102030.0,0.05767]
[1762607895989,0.52678807,102040.0,102030.0,0.05767]
[1762607896294,0.00014702,102050.0,102040.0,0.1557246]
[1762607896481,0.00014702,102050.0,102040.0,0.27550027]
[1762607896687,0.00014702,102050.0,102040.0,0.75396487]
[1762607898496,0.00114702,102050.0,102040.0,0.75396487]
[1762607898889,0.00014702,102050.0,102040.0,0.75396487]
[1762607899885,0.00114702,102050.0,102040.0,0.75396487]
[1762607901192,0.05627557,102070.0,102060.0,0.05767]
[1762607901398,0.04406,102070.0,102060.0,0.63630027]
[1762607901590,0.15294124,102070.0,102060.0,0.63630027]
[1762607901792,0.15294124,102070.0,102060.0,0.73433567]
[1762607902189,0.15294124,102070.0,102060.0,0.63630027]
[1762607902585,0.25196704,102070.0,102060.0,0.63630027]
[1762607902783,0.25396704,102070.0,102060.0,0.29511027]
[1762607902988,0.15594124,102070.0,102060.0,0.29511027]
[1762607903396,0.16784965,102070.0,102060.0,0.39314567]
[1762607903595,0.05896841,102070.0,102060.0,0.75394567]
[1762607903796,0.03643841,102070.0,102060.0,0.75394567]
[1762607904589,0.003,102070.0,102060.0,0.75394567]
[1762607904793,0.40486,102100.0,102090.0,0.05767]
[1762607904995,0.40486,102100.0,102090.0,0.27550027]
[1762607905198,0.51785985,102100.0,102090.0,0.27550027]
[1762607905393,0.16895946,102100.0,102090.0,0.39311687]
[1762607905699,0.16895946,102100.0,102090.0,0.29511027]
[1762607906090,0.17195946,102100.0,102090.0,0.29511027]
[1762607906296,0.27295646,102100.0,102090.0,0.29511027]
[1762607906499,0.17495946,102100.0,102090.0,0.29511027]
[1762607906698,0.17195946,102100.0,102090.0,0.39311687]
[1762607906899,0.17195946,102100.0,102090.0,0.29511027]
[1762607906900,0.17495946,102100.0,102090.0,0.29511027]
[1762607907203,0.17495946,102100.0,102090.0,0.39311687]
[1762607908495,0.27295646,102100.0,102090.0,0.29511027]
[1762607909292,0.27295646,102100.0,102090.0,0.39311687]
[1762607909899,0.27295646,102100.0,102090.0,0.29511027]
[1762607910993,0.64393646,102100.0,102090.0,0.04372]
[1762607911293,0.17495946,102100.0,102090.0,0.39279687]
[1762607911498,0.11899985,102100.0,102090.0,0.75359687]
[1762607911700,0.006,102100.0,102090.0,0.75359687]
[1762607911903,0.006,102100.0,102090.0,0.43776]
[1762607912199,0.006,102100.0,102090.0,0.75359687]
[1762607914300,0.006,102100.0,102090.0,0.6653485]
[1762607918106,0.006,102100.0,102090.0,0.8149485]
[1762607921016,0.103997,102100.0,102090.0,0.7169419]
[1762607921215,0.103997,102100.0,102090.0,0.8149485]
[1762607922009,0.006,102100.0,102090.0,0.8149485]
[1762607922511,0.33804882,102110.0,102090.0,0.6020185]
[1762607922714,0.04279,102130.0,102120.0,0.1500078]
[1762607923013,0.15420835,102130.0,102120.0,0.6403897]
[1762607923211,0.17885322,102130.0,102120.0,0.6403897]
[1762607923716,0.16720835,102130.0,102120.0,0.7699716]
[1762607924115,0.16720835,102130.0,102120.0,0.5108078]
[1762607924315,0.17892636,102130.0,102120.0,0.7699716]
[1762607924617,0.18192636,102130.0,102120.0,0.7699716]
[1762607924820,0.18792636,102130.0,102120.0,0.7709716]
[1762607925312,0.18692636,102130.0,102120.0,0.7709716]
[1762607925816,0.18292636,102130.0,102120.0,0.7895816]
[1762607932319,0.16992636,102130.0,102120.0,0.7895816]
[1762607933318,0.14640296,102130.0,102120.0,0.7895816]
[1762607933623,0.16892296,102130.0,102120.0,0.7895816]
[1762607938426,0.26689116,102130.0,102120.0,0.7895816]
[1762607938927,0.16892296,102130.0,102120.0,0.7895816]
[1762607940623,0.18225296,102130.0,102120.0,0.6843538]
[1762607940813,0.64102116,102130.0,102120.0,0.1743619]
[1762607941321,0.1205278,102120.0,102110.0,0.36094702]
[1762607941524,0.1556274,102110.0,102100.0,0.5349219]
[1762607941826,0.16255364,102110.0,102100.0,0.6329189]
[1762607942121,0.16255364,102110.0,102100.0,0.6467889]
[1762607942122,0.26054104,102110.0,102100.0,0.6467889]
[1762607942311,0.26054104,102110.0,102100.0,0.1879919]
[1762607942510,0.2957201,102110.0,102100.0,0.1295819]
[1762607942717,0.70923699,102110.0,102100.0,0.1295819]
[1762607943027,0.67405793,102110.0,102100.0,0.1295819]
[1762607944318,0.153527,102100.0,102090.0,0.15098892]
[1762607944518,0.514327,102100.0,102090.0,0.00014702]
[1762607944719,0.66008851,102100.0,102090.0,0.09815362]
[1762607944924,0.66008851,102100.0,102090.0,0.00014702]
[1762607946227,0.66008851,102100.0,102090.0,0.09815362]
[1762607946529,0.66008851,102100.0,102090.0,0.00014702]
[1762607947029,0.66008851,102100.0,102090.0,0.12972892]
[1762607947223,0.7138054,102100.0,102090.0,0.12972892]
[1762607947419,0.7148054,102100.0,102090.0,0.27227552]
[1762607947822,0.66208851,102100.0,102090.0,0.27227552]
[1762607948017,0.66308851,102100.0,102090.0,0.27227552]
[1762607950334,0.6279387,102100.0,102090.0,0.27227552]
[1762607950631,0.66308851,102100.0,102090.0,0.27227552]
[1762607951224,0.6279387,102100.0,102090.0,0.27227552]
[1762607951734,0.6269387,102100.0,102090.0,0.27227552]
[1762607952033,0.6259387,102100.0,102090.0,0.27227552]
[1762607956226,0.6259387,102100.0,102090.0,0.12972892]
[1762607956430,0.6259387,102100.0,102090.0,0.00014702]
[1762607956939,0.6259387,102100.0,102090.0,0.02140702]
[1762607957535,0.6259387,102100.0,102090.0,0.00014702]
[1762607957726,0.1111962,102090.0,102080.0,0.0980136]
[1762607957931,0.5163062,102090.0,102080.0,0.1176236]
[1762607958137,0.62446971,102090.0,102080.0,0.1176236]
[1762607958941,0.62446971,102090.0,102080.0,0.1408836]
[1762607959629,0.62446971,102090.0,102080.0,0.2937455]
[1762607960138,0.62446971,102090.0,102080.0,0.2947455]
[1762607960942,0.62446971,102090.0,102080.0,0.1967319]
[1762607961235,0.62446971,102090.0,102080.0,0.1521919]
[1762607961441,0.62446971,102090.0,102080.0,0.1734519]
[1762607962138,0.51327351,102090.0,102080.0,0.3066181]
[1762607962439,0.1104167,102120.0,102110.0,0.04454]
[1762607962633,0.41682801,102130.0,102120.0,0.05841]
[1762607962834,0.41682801,102130.0,102120.0,0.79581458]
[1762607962835,0.01171801,102130.0,102120.0,0.79581458]
[1762607963038,0.10876678,102130.0,102120.0,0.43501458]
[1762607963230,0.10876678,102130.0,102120.0,0.79581458]
[1762607963440,0.12025279,102130.0,102120.0,0.79581458]
[1762607963837,0.10876678,102130.0,102120.0,0.79581458]
[1762607964239,0.11276678,102130.0,102120.0,0.79581458]
[1762607964439,0.11476678,102130.0,102120.0,0.7763516]
[1762607964645,0.11076678,102130.0,102120.0,0.79581458]
[1762607964842,0.11176678,102130.0,102120.0,0.79581458]
[1762607968241,0.15683678,102130.0,102120.0,0.79581458]
[1762607968441,0.15683678,102130.0,102120.0,0.66623268]
[1762607969348,0.11176678,102130.0,102120.0,0.79581458]
[1762607969556,0.05418262,102140.0,102130.0,0.1540782]
[1762607969853,0.05418262,102140.0,102130.0,0.66392308]
[1762607971747,0.11251,102170.0,102160.0,0.1407494]
[1762607971950,0.05839182,102170.0,102160.0,0.6311313]
[1762607972152,0.17135245,102170.0,102160.0,0.6311313]
[1762607972652,0.5436728,102170.0,102160.0,0.2703313]
[1762607973038,0.5446728,102170.0,102160.0,0.2703313]
[1762607973238,0.6426027,102170.0,102160.0,0.1723919]
[1762607973554,0.5446728,102170.0,102160.0,0.2703313]
[1762607973755,0.6426027,102170.0,102160.0,0.1295819]
[1762607973953,0.05903,102160.0,102150.0,0.09809552]
[1762607974149,0.41983,102160.0,102150.0,0.09809552]
[1762607974453,0.53280534,102160.0,102150.0,0.09809552]
[1762607974656,0.53280534,102160.0,102150.0,0.11931552]
[1762607975254,0.53280534,102160.0,102150.0,0.12031552]
[1762607975455,0.17200534,102160.0,102150.0,0.14190552]
[1762607977053,0.53280534,102160.0,102150.0,0.14190552]
[1762607977250,0.53280534,102160.0,102150.0,0.37845707]
[1762607977555,0.17200534,102160.0,102150.0,0.75255707]
[1762607978146,0.15861534,102160.0,102150.0,0.75255707]
[1762607978458,0.17200534,102160.0,102150.0,0.75255707]
[1762607979353,0.15861534,102160.0,102150.0,0.75255707]
[1762607982149,0.17200534,102160.0,102150.0,0.73925707]
[1762607982353,0.26994474,102160.0,102150.0,0.5005785]
[1762607982557,0.17200534,102160.0,102150.0,0.71766707]
[1762607982758,0.17200534,102160.0,102150.0,0.73925707]
[1762607983652,0.26994474,102160.0,102150.0,0.73925707]
[1762607984361,0.26994474,102160.0,102150.0,0.37845757]
[1762607984658,0.26994474,102160.0,102150.0,0.06342]
[1762607984858,0.26994474,102160.0,102150.0,0.161369]
[1762607985060,0.26994474,102160.0,102150.0,0.06342]
[1762607985265,0.26994474,102160.0,102150.0,0.161369]
[1762607985961,0.26994474,102160.0,102150.0,0.02061]
[1762607986261,0.77744759,102160.0,102150.0,0.00114702]
[1762607986853,0.1193186,102140.0,102130.0,0.0979614]
[1762607987058,0.1558782,102130.0,102120.0,0.5046091]
[1762607987261,0.05791,102130.0,102120.0,0.5046091]
[1762607987463,0.16023484,102130.0,102120.0,0.72169767]
[1762607987763,0.16023484,102130.0,102120.0,0.74116065]
[1762607988562,0.16023484,102130.0,102120.0,0.74416065]
[1762607989753,0.16023484,102130.0,102120.0,0.52707208]
[1762607989955,0.61900304,102130.0,102120.0,0.003]
[1762607990861,0.61900304,102130.0,102120.0,0.02586]
[1762607991063,0.61900304,102130.0,102120.0,0.1208378]
[1762607991256,0.55618465,102130.0,102120.0,0.1208378]
[1762607991457,0.55618465,102130.0,102120.0,0.1438178]
[1762607991657,0.52103484,102130.0,102120.0,0.1438178]
[1762607992263,0.55618465,102130.0,102120.0,0.36090637]
[1762607992769,0.55618465,102130.0,102120.0,0.1438178]
[1762607993158,0.16023484,102130.0,102120.0,0.72170637]
[1762607993463,0.16023484,102130.0,102120.0,0.75482935]
[1762607993764,0.16023484,102130.0,102120.0,0.39402935]
[1762607994064,0.16023484,102130.0,102120.0,0.38036935]
[1762607995565,0.16023484,102130.0,102120.0,0.39366935]
[1762607999162,0.25820304,102130.0,102120.0,0.38036935]
[1762607999468,0.25820304,102130.0,102120.0,0.06530298]
[1762607999666,0.61900304,102130.0,102120.0,0.06530298]
[1762608000969,0.1546278,102120.0,102110.0,0.00014702]
[1762608001168,0.5154278,102120.0,102110.0,0.00014702]
[1762608001467,0.62507821,102120.0,102110.0,0.00014702]
[1762608001870,0.62507821,102120.0,102110.0,0.12031442]
[1762608002061,0.52710041,102120.0,102110.0,0.14194442]
[1762608002262,0.13173041,102120.0,102110.0,0.39179597]
[1762608002562,0.10965041,102120.0,102110.0,0.39179597]
[1762608002769,0.10965041,102120.0,102110.0,0.39279597]
[1762608003165,0.13173041,102120.0,102110.0,0.39279597]
[1762608003472,0.26427821,102120.0,102110.0,0.28150857]
[1762608003971,0.26427821,102120.0,102110.0,0.37849597]
[1762608004367,0.62507821,102120.0,102110.0,0.00014702]
[1762608004676,0.66022802,102120.0,102110.0,0.00014702]
[1762608005467,0.71294491,102120.0,102110.0,0.00014702]
[1762608005679,0.6777951,102120.0,102110.0,0.00014702]
[1762608006077,0.6787951,102120.0,102110.0,0.00014702]
[1762608006679,0.66117229,102120.0,102110.0,0.00014702]
[1762608007174,0.80872362,102120.0,102110.0,0.00014702]
[1762608007378,0.154647,102100.0,102090.0,0.4809775]
[1762608007575,0.154647,102100.0,102090.0,0.50044048]
[1762608007783,0.25993614,102100.0,102090.0,0.52207048]
[1762608008577,0.25993614,102100.0,102090.0,0.16127048]
[1762608008775,0.25993614,102100.0,102090.0,0.16227048]
[1762608008976,0.25993614,102100.0,102090.0,0.16427048]
[1762608009569,0.25993614,102100.0,102090.0,0.16327048]
[1762608010570,0.25993614,102100.0,102090.0,0.16127048]
[1762608010771,0.59960614,102100.0,102090.0,0.11846958]
[1762608010971,0.65583022,102100.0,102090.0,0.001]
[1762608011882,0.1546566,102090.0,102080.0,0.35913947]
[1762608012084,0.5154566,102090.0,102080.0,0.35913947]
[1762608012283,0.62788841,102090.0,102080.0,0.37243947]
[1762608012576,0.26708841,102090.0,102080.0,0.75270245]
[1762608013983,0.62788841,102090.0,102080.0,0.01969048]
[1762608014484,0.62788841,102090.0,102080.0,0.06450048]
[1762608014784,0.62788841,102090.0,102080.0,0.28158905]
[1762608015484,0.62788841,102090.0,102080.0,0.37960525]
[1762608016283,0.62788841,102090.0,102080.0,0.02069048]
[1762608016284,0.66298249,102090.0,102080.0,0.02069048]
[1762608016673,0.62788841,102090.0,102080.0,0.02069048]
[1762608016982,0.62788841,102090.0,102080.0,0.16251668]
[1762608018082,0.26708841,102090.0,102080.0,0.16251668]
[1762608018272,0.26708841,102090.0,102080.0,0.37960525]
[1762608018966,0.62788841,102090.0,102080.0,0.37960525]
[1762608019481,0.26708841,102090.0,102080.0,0.74040525]
[1762608019677,0.15564181,102090.0,102080.0,0.75370525]
[1762608020472,0.25364841,102090.0,102080.0,0.65568905]
[1762608020678,0.26708841,102090.0,102080.0,0.74040525]
[1762608020983,0.16908181,102090.0,102080.0,0.74040525]
[1762608021177,0.15564181,102090.0,102080.0,0.75370525]
[1762608022383,0.25364841,102090.0,102080.0,0.39290525]
[1762608022575,0.26708841,102090.0,102080.0,0.29488905]
[1762608022775,0.26708841,102090.0,102080.0,0.39290525]
[1762608023482,0.26708841,102090.0,102080.0,0.37960525]
[1762608023876,0.16908181,102090.0,102080.0,0.39290525]
[1762608024081,0.15564181,102090.0,102080.0,0.39290525]
[1762608024283,0.15564181,102090.0,102080.0,0.75370525]
[1762608025378,0.11243181,102090.0,102080.0,0.75370525]
[1762608025679,0.15605181,102090.0,102080.0,0.75370525]
[1762608027582,0.13372181,102090.0,102080.0,0.75370525]
[1762608030680,0.11243181,102090.0,102080.0,0.75370525]
[1762608031983,0.11243181,102090.0,102080.0,0.75670525]
[1762608032282,0.5510914,102110.0,102100.0,0.141147]
[1762608032590,0.65649494,102110.0,102100.0,0.37769855]
[1762608032783,0.65649494,102110.0,102100.0,0.35823557]
[1762608033081,0.70921183,102110.0,102100.0,0.35823557]
[1762608033287,0.70921183,102110.0,102100.0,0.37769855]
[1762608033488,0.67411775,102110.0,102100.0,0.37769855]
[1762608033785,0.119287,102100.0,102090.0,0.57788857]
[1762608033985,0.515387,102100.0,102090.0,0.06261298]
[1762608034178,0.62781446,102100.0,102090.0,0.06261298]
[1762608034380,0.49451746,102100.0,102090.0,0.30420229]
[1762608034579,0.15604746,102100.0,102090.0,0.66500229]
[1762608035181,0.16901746,102100.0,102090.0,0.66600229]
[1762608036888,0.16901746,102100.0,102090.0,0.66500229]
[1762608038788,0.26701446,102100.0,102090.0,0.66500229]
[1762608039296,0.16901746,102100.0,102090.0,0.66500229]
[1762608039996,0.16901746,102100.0,102090.0,0.52141958]
[1762608040195,0.16901746,102100.0,102090.0,0.65107229]
[1762608040387,0.16901746,102100.0,102090.0,0.72884186]
[1762608040688,0.26701446,102100.0,102090.0,0.72884186]
[1762608040992,0.62781446,102100.0,102090.0,0.27003526]
[1762608041191,0.66304066,102100.0,102090.0,0.27003526]
[1762608041584,0.66304066,102100.0,102090.0,0.36804186]
[1762608043697,0.30224066,102100.0,102090.0,0.36804186]
[1762608044495,0.26701446,102100.0,102090.0,0.36804186]
[1762608044899,0.16901746,102100.0,102090.0,0.36804186]
[1762608045098,0.20424366,102100.0,102090.0,0.36804186]
[1762608045491,0.30224066,102100.0,102090.0,0.36804186]
[1762608046196,0.20424366,102100.0,102090.0,0.36804186]
[1762608046696,0.16901746,102100.0,102090.0,0.36804186]
[1762608047098,0.20424366,102100.0,102090.0,0.36804186]
[1762608047295,0.30224066,102100.0,102090.0,0.36804186]
[1762608048399,0.56504366,102100.0,102090.0,0.36804186]
[1762608048595,0.30224066,102100.0,102090.0,0.39445748]
[1762608051702,0.35507996,102100.0,102090.0,0.36804186]
[1762608053098,0.35507996,102100.0,102090.0,0.34857888]
[1762608053307,0.35507996,102100.0,102090.0,0.36804186]
[1762608053604,0.25708296,102100.0,102090.0,0.36804186]
[1762608053803,0.35507996,102100.0,102090.0,0.36804186]
[1762608054105,0.35507996,102100.0,102090.0,0.39445748]
[1762608059299,0.25708296,102100.0,102090.0,0.39445748]
[1762608059504,0.35507996,102100.0,102090.0,0.39445748]
[1762608059705,0.25708296,102100.0,102090.0,0.39445748]
[1762608060004,0.20424366,102100.0,102090.0,0.76917748]
[1762608060693,0.20424366,102100.0,102090.0,0.74276186]